Workbook

Sheet Poule
A1: Toernooi 2 poules 5 teams | AY1: =COUNTA(U13:W18) -> 18 | AZ1: =COUNTA(AT13:AV18) -> 18 | BA1: =COUNTA(U21:W26) -> 6 | BB1: =COUNTA(AT21:AV26) -> 6 | BJ1: =VALUE(A6) -> 3 | BK1: =B6 -> PA TEAM 1 | BL1: =VALUE(O6) -> 4 | BM1: =P6 -> PB TEAM 1 | BN1: =VALUE(AD6) -> 0 | BO1: =AE6 -> 0 | BP1: =VALUE(AR6) -> 0 | BQ1: =AS6 -> 0
BJ2: =VALUE(A7) -> 5 | BK2: =B7 -> PA TEAM 2 | BL2: =VALUE(O7) -> 1 | BM2: =P7 -> PB TEAM 2 | BN2: =VALUE(AD7) -> 0 | BO2: =AE7 -> 0 | BP2: =VALUE(AR7) -> 0 | BQ2: =AS7 -> 0
A3: Stand | K3: Gewonnen | L3: Gelijk | M3: Verloren | N3: Saldo | O3: Stand | Z3: Gewonnen | AA3: Gelijk | AB3: Verloren | AC3: Saldo | BJ3: =VALUE(A8) -> 1 | BK3: =B8 -> PA TEAM 3 | BL3: =VALUE(O8) -> 2 | BM3: =P8 -> PB TEAM 3 | BN3: =VALUE(AD8) -> 0 | BO3: =AE8 -> 0 | BP3: =VALUE(AR8) -> 0 | BQ3: =AS8 -> 0
BJ4: =VALUE(A9) -> 2 | BK4: =B9 -> PA TEAM 4 | BL4: =VALUE(O9) -> 3 | BM4: =P9 -> PB TEAM 4 | BN4: =VALUE(AD9) -> 0 | BO4: =AE9 -> 0 | BP4: =VALUE(AR9) -> 0 | BQ4: =AS9 -> 0
B5: Groep 1 | H5: V | I5: T | J5: P | P5: Groep 2 | W5: V | X5: T | Y5: P | BJ5: =VALUE(A10) -> 4 | BK5: =B10 -> PA TEAM 5 | BL5: =VALUE(O10) -> 5 | BM5: =P10 -> PB TEAM 5 | BN5: =VALUE(AD10) -> 0 | BO5: =AE10 -> 0 | BP5: =VALUE(AR10) -> 0 | BQ5: =AS10 -> 0
A6: =RANK(J6,$J$6:$J$10,0) -> 3 | B6: PA TEAM 1 | H6: =SUMIF($G$13:$L$22,B6,$U$13:$U$22)+SUMIF($N$13:$S$22,B6,$W$13:$W$22) -> 11 | I6: =SUMIF($G$13:$L$22,B6,$W$13:$W$22)+SUMIF($N$13:$S$22,B6,$U$13:$U$22) -> 12 | J6: =(K6*2)+L6+(H6*0.001)-(I6*0.001)+(H6*0.00001) -> 3.99911 | K6: =SUMPRODUCT(($G$13:$L$22=B6)*($Y$13:$Y$22=2))+SUMPRODUCT(($N$13:$S$22=B6)*($AA$13:$AA$22=2)) -> 1 | L6: =SUMPRODUCT(($G$13:$L$22=B6)*($Y$13:$Y$22=1))+SUMPRODUCT(($N$13:$S$22=B6)*($AA$13:$AA$22=1)) -> 2 | M6: =SUMPRODUCT(($G$13:$L$22=B6)*($Y$13:$Y$22=0))+SUMPRODUCT(($N$13:$S$22=B6)*($AA$13:$AA$22=0)) -> 1 | N6: =H6-I6 -> -1 | O6: =RANK(Y6,$Y$6:$Y$10,0) -> 4 | P6: PB TEAM 1 | W6: =SUMIF($AF$13:$AK$22,P6,$AT$13:$AT$22)+SUMIF($AM$13:$AR$22,P6,$AV$13:$AV$22) -> 15 | X6: =SUMIF($AF$13:$AK$22,P6,$AV$13:$AV$22)+SUMIF($AM$13:$AR$22,P6,$AT$13:$AT$22) -> 20 | Y6: =(Z6*2)+AA6+(W6*0.001)-(X6*0.001)+(W6*0.00001) -> 3.99515 | Z6: =SUMPRODUCT(($AF$13:$AK$22=P6)*($AX$13:$AX$22=2))+SUMPRODUCT(($AM$13:$AR$22=P6)*($AZ$13:$AZ$22=2)) -> 2 | AA6: =SUMPRODUCT(($AF$13:$AK$22=P6)*($AX$13:$AX$22=1))+SUMPRODUCT(($AM$13:$AR$22=P6)*($AZ$13:$AZ$22=1)) -> 0 | AB6: =SUMPRODUCT(($AF$13:$AK$22=P6)*($AX$13:$AX$22=0))+SUMPRODUCT(($AM$13:$AR$22=P6)*($AZ$13:$AZ$22=0)) -> 2 | AC6: =W6-X6 -> -5
A7: =RANK(J7,$J$6:$J$10,0) -> 5 | B7: PA TEAM 2 | H7: =SUMIF($G$13:$L$22,B7,$U$13:$U$22)+SUMIF($N$13:$S$22,B7,$W$13:$W$22) -> 10 | I7: =SUMIF($G$13:$L$22,B7,$W$13:$W$22)+SUMIF($N$13:$S$22,B7,$U$13:$U$22) -> 10 | J7: =(K7*2)+L7+(H7*0.001)-(I7*0.001)+(H7*0.00001) -> 2.0001 | K7: =SUMPRODUCT(($G$13:$L$22=B7)*($Y$13:$Y$22=2))+SUMPRODUCT(($N$13:$S$22=B7)*($AA$13:$AA$22=2)) -> 1 | L7: =SUMPRODUCT(($G$13:$L$22=B7)*($Y$13:$Y$22=1))+SUMPRODUCT(($N$13:$S$22=B7)*($AA$13:$AA$22=1)) -> 0 | M7: =SUMPRODUCT(($G$13:$L$22=B7)*($Y$13:$Y$22=0))+SUMPRODUCT(($N$13:$S$22=B7)*($AA$13:$AA$22=0)) -> 3 | N7: =H7-I7 -> 0 | O7: =RANK(Y7,$Y$6:$Y$10,0) -> 1 | P7: PB TEAM 2 | W7: =SUMIF($AF$13:$AK$22,P7,$AT$13:$AT$22)+SUMIF($AM$13:$AR$22,P7,$AV$13:$AV$22) -> 16 | X7: =SUMIF($AF$13:$AK$22,P7,$AV$13:$AV$22)+SUMIF($AM$13:$AR$22,P7,$AT$13:$AT$22) -> 7 | Y7: =(Z7*2)+AA7+(W7*0.001)-(X7*0.001)+(W7*0.00001) -> 5.00916 | Z7: =SUMPRODUCT(($AF$13:$AK$22=P7)*($AX$13:$AX$22=2))+SUMPRODUCT(($AM$13:$AR$22=P7)*($AZ$13:$AZ$22=2)) -> 2 | AA7: =SUMPRODUCT(($AF$13:$AK$22=P7)*($AX$13:$AX$22=1))+SUMPRODUCT(($AM$13:$AR$22=P7)*($AZ$13:$AZ$22=1)) -> 1 | AB7: =SUMPRODUCT(($AF$13:$AK$22=P7)*($AX$13:$AX$22=0))+SUMPRODUCT(($AM$13:$AR$22=P7)*($AZ$13:$AZ$22=0)) -> 1 | AC7: =W7-X7 -> 9
A8: =RANK(J8,$J$6:$J$10,0) -> 1 | B8: PA TEAM 3 | H8: =SUMIF($G$13:$L$22,B8,$U$13:$U$22)+SUMIF($N$13:$S$22,B8,$W$13:$W$22) -> 16 | I8: =SUMIF($G$13:$L$22,B8,$W$13:$W$22)+SUMIF($N$13:$S$22,B8,$U$13:$U$22) -> 11 | J8: =(K8*2)+L8+(H8*0.001)-(I8*0.001)+(H8*0.00001) -> 6.00516 | K8: =SUMPRODUCT(($G$13:$L$22=B8)*($Y$13:$Y$22=2))+SUMPRODUCT(($N$13:$S$22=B8)*($AA$13:$AA$22=2)) -> 3 | L8: =SUMPRODUCT(($G$13:$L$22=B8)*($Y$13:$Y$22=1))+SUMPRODUCT(($N$13:$S$22=B8)*($AA$13:$AA$22=1)) -> 0 | M8: =SUMPRODUCT(($G$13:$L$22=B8)*($Y$13:$Y$22=0))+SUMPRODUCT(($N$13:$S$22=B8)*($AA$13:$AA$22=0)) -> 1 | N8: =H8-I8 -> 5 | O8: =RANK(Y8,$Y$6:$Y$10,0) -> 2 | P8: PB TEAM 3 | W8: =SUMIF($AF$13:$AK$22,P8,$AT$13:$AT$22)+SUMIF($AM$13:$AR$22,P8,$AV$13:$AV$22) -> 14 | X8: =SUMIF($AF$13:$AK$22,P8,$AV$13:$AV$22)+SUMIF($AM$13:$AR$22,P8,$AT$13:$AT$22) -> 13 | Y8: =(Z8*2)+AA8+(W8*0.001)-(X8*0.001)+(W8*0.00001) -> 4.00114 | Z8: =SUMPRODUCT(($AF$13:$AK$22=P8)*($AX$13:$AX$22=2))+SUMPRODUCT(($AM$13:$AR$22=P8)*($AZ$13:$AZ$22=2)) -> 1 | AA8: =SUMPRODUCT(($AF$13:$AK$22=P8)*($AX$13:$AX$22=1))+SUMPRODUCT(($AM$13:$AR$22=P8)*($AZ$13:$AZ$22=1)) -> 2 | AB8: =SUMPRODUCT(($AF$13:$AK$22=P8)*($AX$13:$AX$22=0))+SUMPRODUCT(($AM$13:$AR$22=P8)*($AZ$13:$AZ$22=0)) -> 1 | AC8: =W8-X8 -> 1
A9: =RANK(J9,$J$6:$J$10,0) -> 2 | B9: PA TEAM 4 | H9: =SUMIF($G$13:$L$22,B9,$U$13:$U$22)+SUMIF($N$13:$S$22,B9,$W$13:$W$22) -> 10 | I9: =SUMIF($G$13:$L$22,B9,$W$13:$W$22)+SUMIF($N$13:$S$22,B9,$U$13:$U$22) -> 8 | J9: =(K9*2)+L9+(H9*0.001)-(I9*0.001)+(H9*0.00001) -> 5.0021 | K9: =SUMPRODUCT(($G$13:$L$22=B9)*($Y$13:$Y$22=2))+SUMPRODUCT(($N$13:$S$22=B9)*($AA$13:$AA$22=2)) -> 2 | L9: =SUMPRODUCT(($G$13:$L$22=B9)*($Y$13:$Y$22=1))+SUMPRODUCT(($N$13:$S$22=B9)*($AA$13:$AA$22=1)) -> 1 | M9: =SUMPRODUCT(($G$13:$L$22=B9)*($Y$13:$Y$22=0))+SUMPRODUCT(($N$13:$S$22=B9)*($AA$13:$AA$22=0)) -> 1 | N9: =H9-I9 -> 2 | O9: =RANK(Y9,$Y$6:$Y$10,0) -> 3 | P9: PB TEAM 4 | W9: =SUMIF($AF$13:$AK$22,P9,$AT$13:$AT$22)+SUMIF($AM$13:$AR$22,P9,$AV$13:$AV$22) -> 12 | X9: =SUMIF($AF$13:$AK$22,P9,$AV$13:$AV$22)+SUMIF($AM$13:$AR$22,P9,$AT$13:$AT$22) -> 12 | Y9: =(Z9*2)+AA9+(W9*0.001)-(X9*0.001)+(W9*0.00001) -> 4.00012 | Z9: =SUMPRODUCT(($AF$13:$AK$22=P9)*($AX$13:$AX$22=2))+SUMPRODUCT(($AM$13:$AR$22=P9)*($AZ$13:$AZ$22=2)) -> 2 | AA9: =SUMPRODUCT(($AF$13:$AK$22=P9)*($AX$13:$AX$22=1))+SUMPRODUCT(($AM$13:$AR$22=P9)*($AZ$13:$AZ$22=1)) -> 0 | AB9: =SUMPRODUCT(($AF$13:$AK$22=P9)*($AX$13:$AX$22=0))+SUMPRODUCT(($AM$13:$AR$22=P9)*($AZ$13:$AZ$22=0)) -> 2 | AC9: =W9-X9 -> 0
A10: =RANK(J10,$J$6:$J$10,0) -> 4 | B10: PA TEAM 5 | H10: =SUMIF($G$13:$L$22,B10,$U$13:$U$22)+SUMIF($N$13:$S$22,B10,$W$13:$W$22) -> 11 | I10: =SUMIF($G$13:$L$22,B10,$W$13:$W$22)+SUMIF($N$13:$S$22,B10,$U$13:$U$22) -> 17 | J10: =(K10*2)+L10+(H10*0.001)-(I10*0.001)+(H10*0.00001) -> 2.99411 | K10: =SUMPRODUCT(($G$13:$L$22=B10)*($Y$13:$Y$22=2))+SUMPRODUCT(($N$13:$S$22=B10)*($AA$13:$AA$22=2)) -> 1 | L10: =SUMPRODUCT(($G$13:$L$22=B10)*($Y$13:$Y$22=1))+SUMPRODUCT(($N$13:$S$22=B10)*($AA$13:$AA$22=1)) -> 1 | M10: =SUMPRODUCT(($G$13:$L$22=B10)*($Y$13:$Y$22=0))+SUMPRODUCT(($N$13:$S$22=B10)*($AA$13:$AA$22=0)) -> 2 | N10: =H10-I10 -> -6 | O10: =RANK(Y10,$Y$6:$Y$10,0) -> 5 | P10: PB TEAM 5 | W10: =SUMIF($AF$13:$AK$22,P10,$AT$13:$AT$22)+SUMIF($AM$13:$AR$22,P10,$AV$13:$AV$22) -> 9 | X10: =SUMIF($AF$13:$AK$22,P10,$AV$13:$AV$22)+SUMIF($AM$13:$AR$22,P10,$AT$13:$AT$22) -> 14 | Y10: =(Z10*2)+AA10+(W10*0.001)-(X10*0.001)+(W10*0.00001) -> 2.99509 | Z10: =SUMPRODUCT(($AF$13:$AK$22=P10)*($AX$13:$AX$22=2))+SUMPRODUCT(($AM$13:$AR$22=P10)*($AZ$13:$AZ$22=2)) -> 1 | AA10: =SUMPRODUCT(($AF$13:$AK$22=P10)*($AX$13:$AX$22=1))+SUMPRODUCT(($AM$13:$AR$22=P10)*($AZ$13:$AZ$22=1)) -> 1 | AB10: =SUMPRODUCT(($AF$13:$AK$22=P10)*($AX$13:$AX$22=0))+SUMPRODUCT(($AM$13:$AR$22=P10)*($AZ$13:$AZ$22=0)) -> 2 | AC10: =W10-X10 -> -5
D12: Tijd | G12: VELD 1 | U12: Uitslag | Y12: Punten | AC12: Tijd | AF12: VELD 2 | AT12: Uitslag | AX12: Punten
D13: 09:00:00 | G13: =B6 -> PA TEAM 1 | M13: -- | N13: =B7 -> PA TEAM 2 | U13: 3 | V13: -- | W13: 2 | Y13: =IF(U13="","",IF(U13>W13,2,IF(U13=W13,1,0))) -> 2 | AA13: =IF(W13="","",IF(W13>U13,2,IF(W13=U13,1,0))) -> 0 | AC13: 09:00:00 | AF13: =P6 -> PB TEAM 1 | AL13: -- | AM13: =P7 -> PB TEAM 2 | AT13: 1 | AU13: -- | AV13: 8 | AX13: =IF(AT13="","",IF(AT13>AV13,2,IF(AT13=AV13,1,0))) -> 0 | AZ13: =IF(AV13="","",IF(AV13>AT13,2,IF(AV13=AT13,1,0))) -> 2
D14: 09:20:00 | G14: =B8 -> PA TEAM 3 | M14: -- | N14: =B9 -> PA TEAM 4 | U14: 5 | V14: -- | W14: 0 | Y14: 2 | AA14: 0 | AC14: 09:20:00 | AF14: =P8 -> PB TEAM 3 | AL14: -- | AM14: =P9 -> PB TEAM 4 | AT14: 2 | AU14: -- | AV14: 6 | AX14: 0 | AZ14: 2
D15: 09:40:00 | G15: =B10 -> PA TEAM 5 | M15: -- | N15: =B6 -> PA TEAM 1 | U15: 5 | V15: -- | W15: 5 | Y15: 1 | AA15: 1 | AC15: 09:40:00 | AF15: =P10 -> PB TEAM 5 | AL15: -- | AM15: =P6 -> PB TEAM 1 | AT15: 3 | AU15: -- | AV15: 8 | AX15: 0 | AZ15: 2
D16: 10:00:00 | G16: =B7 -> PA TEAM 2 | M16: -- | N16: =B8 -> PA TEAM 3 | U16: 6 | V16: -- | W16: 3 | Y16: 2 | AA16: 0 | AC16: 10:00:00 | AF16: =P7 -> PB TEAM 2 | AL16: -- | AM16: =P8 -> PB TEAM 3 | AT16: 4 | AU16: -- | AV16: 4 | AX16: 1 | AZ16: 1
D17: 10:20:00 | G17: =B10 -> PA TEAM 5 | M17: -- | N17: =B9 -> PA TEAM 4 | U17: 2 | V17: -- | W17: 8 | Y17: 0 | AA17: 2 | AC17: 10:20:00 | AF17: =P10 -> PB TEAM 5 | AL17: -- | AM17: =P9 -> PB TEAM 4 | AT17: 2 | AU17: -- | AV17: 3 | AX17: 0 | AZ17: 2
D18: 10:40:00 | G18: =B6 -> PA TEAM 1 | M18: -- | N18: =B8 -> PA TEAM 3 | U18: 3 | V18: -- | W18: 5 | Y18: 0 | AA18: 2 | AC18: 10:40:00 | AF18: =P6 -> PB TEAM 1 | AL18: -- | AM18: =P8 -> PB TEAM 3 | AT18: 1 | AU18: -- | AV18: 6 | AX18: 0 | AZ18: 2
D19: 11:00:00 | G19: =B7 -> PA TEAM 2 | M19: -- | N19: =B10 -> PA TEAM 5 | U19: 1 | V19: -- | W19: 2 | Y19: 0 | AA19: 2 | AC19: 11:00:00 | AF19: =P7 -> PB TEAM 2 | AL19: -- | AM19: =P10 -> PB TEAM 5 | AT19: 1 | AU19: -- | AV19: 2 | AX19: 0 | AZ19: 2
D20: 11:20:00 | G20: =B9 -> PA TEAM 4 | M20: -- | N20: =B6 -> PA TEAM 1 | U20: 0 | V20: -- | W20: 0 | Y20: 1 | AA20: 1 | AC20: 11:20:00 | AF20: =P9 -> PB TEAM 4 | AL20: -- | AM20: =P6 -> PB TEAM 1 | AT20: 3 | AU20: -- | AV20: 5 | AX20: 0 | AZ20: 2
D21: 11:40:00 | G21: =B8 -> PA TEAM 3 | M21: -- | N21: =B10 -> PA TEAM 5 | U21: 3 | V21: -- | W21: 2 | Y21: 2 | AA21: 0 | AC21: 11:40:00 | AF21: =P8 -> PB TEAM 3 | AL21: -- | AM21: =P10 -> PB TEAM 5 | AT21: 2 | AU21: -- | AV21: 2 | AX21: 1 | AZ21: 1
D22: 12:00:00 | G22: =B9 -> PA TEAM 4 | M22: -- | N22: =B7 -> PA TEAM 2 | U22: 2 | V22: -- | W22: 1 | Y22: 2 | AA22: 0 | AC22: 12:00:00 | AF22: =P9 -> PB TEAM 4 | AL22: -- | AM22: =P7 -> PB TEAM 2 | AT22: 0 | AU22: -- | AV22: 3 | AX22: 0 | AZ22: 2
D42: Scheidsrechters | I42: Scheidsrechter 1
I43: Scheidsrechter 2
I44: Scheidsrechter 3
I45: Scheidsrechter 4

Sheet Finale
D1: Finale
A4: W6 | B4: Veld: 1 | G4: 12.10 - 12.30 | L4: =VLOOKUP(5,Poule!$A$6:$G$10,2,0) -> PA TEAM 2 | Q4: =VLOOKUP(5,Poule!$O$6:$V$10,2,0) -> PB TEAM 5 | V4: 1 | W4: - | X4: 2 | AC4: 5e poule A – 5e poule B | AL4: Bekers 1e - 2e
A5: W7 | B5: Veld: 2 | G5: 12.10 - 12.30 | L5: =VLOOKUP(4,Poule!$A$6:$G$10,2,0) -> PA TEAM 5 | Q5: =VLOOKUP(4,Poule!$O$6:$V$10,2,0) -> PB TEAM 1 | V5: 1 | W5: - | X5: 2 | AC5: 4e poule A – 4e poule B
A6: W8 | B6: Veld: 3 | G6: 12.10 - 12.30 | L6: =VLOOKUP(3,Poule!$A$6:$G$10,2,0) -> PA TEAM 1 | Q6: =VLOOKUP(3,Poule!$O$6:$V$10,2,0) -> PB TEAM 4 | V6: 1 | W6: - | X6: 0 | AC6: 3e poule A – 3e poule B | AL6: Bekers 3e - 4e
A7: W9 | B7: Veld: 1 | G7: 12.40 - 13.00 | L7: =VLOOKUP(2,Poule!$A$6:$G$10,2,0) -> PA TEAM 4 | Q7: =VLOOKUP(2,Poule!$O$6:$V$10,2,0) -> PB TEAM 3 | V7: 0 | W7: - | X7: 1 | AC7: 2e poule A – 2e poule B | AL7: Bekers 5e - 6e
A8: W10 | B8: Veld: 2 | G8: 12.40 - 13.00 | L8: =VLOOKUP(1,Poule!$A$6:$G$10,2,0) -> PA TEAM 3 | Q8: =VLOOKUP(1,Poule!$O$6:$V$10,2,0) -> PB TEAM 2 | V8: 1 | W8: - | X8: 0 | AC8: 1e poule A – 1e poule B | AL8: Beker | AM8: EZ - toernooi 2015
A12: W11 | B12: Veld: 1 | G12: 13.10 - 13.30 | L12: =IF(V4="","",IF(V4>X4,Q4,L4)) -> PA TEAM 2 | Q12: =IF(V5="","",IF(V5>X5,Q5,L5)) -> PA TEAM 5 | V12: 1 | W12: - | X12: 0 | AC12: Verl W6 – Verl W7 | AG12: Wedstrijden: 9e / 10e plaats
A13: W12 | B13: Veld: 2 | G13: 13.10 - 13.30 | L13: =IF(V4="","",IF(V4>X4,L4,Q4)) -> PB TEAM 5 | Q13: =IF(V6="","",IF(V6>X6,Q6,L6)) -> PB TEAM 4 | V13: 1 | W13: - | X13: 0 | AC13: Win W6 – Verl W8 | AG13: Wedstrijden: 7e / 8e plaats | AL13: Beker | AM13: EZ - toernooi 2015
A14: W13 | B14: Veld: 3 | G14: 13.10 - 13.30 | L14: =IF(V5="","",IF(V5>X5,L5,Q5)) -> PB TEAM 1 | Q14: =IF(V6="","",IF(V6>X6,L6,Q6)) -> PA TEAM 1 | V14: 4 | W14: - | X14: 1 | AC14: Win W7 – Win W8 | AG14: Wedstrijden: 5e / 6e plaats | AL14: Beker | AM14: EZ - toernooi 2015
A16: W14 | B16: Veld: 1 | G16: 13.40 - 14.00 | L16: =IF(V7="","",IF(V7>X7,Q7,L7)) -> PA TEAM 4 | Q16: =IF(V8="","",IF(V8>X8,Q8,L8)) -> PB TEAM 2 | V16: 2 | W16: - | X16: 1 | AC16: Verliezer W9 – Verliezer W10 | AG16: 3e en 4e plaats | AL16: Beker | AM16: EZ - toernooi 2015
A17: W15 | B17: Veld: 1 | G17: 14.00 - 14.20 | L17: =IF(V7="","",IF(V7>X7,L7,Q7)) -> PB TEAM 3 | Q17: =IF(V8="","",IF(V8>X8,L8,Q8)) -> PA TEAM 3 | V17: 1 | W17: - | X17: 3 | AC17: Winnaar W9 – Winnaar W10 | AG17: Finale | AL17: Beker | AM17: EZ - toernooi 2015
AL18: Beker | AM18: EZ - toernooi 2015
AL19: Beker | AM19: EZ - toernooi 2015
AL20: Beker | AM20: EZ - toernooi 2015
M25: =IF(V17="","",IF(V17>X17,L17,Q17)) -> PA TEAM 3

Sheet GROEP-1
A1: Toernooi 2 poules 5 teams | O1: Scores By: OnlineExcelCursus.NL
A4: =Poule!D12 -> Tijd | B4: =Poule!E12 -> 0 | C4: =Poule!G12 -> VELD 1 | H4: =Poule!U12 -> Uitslag | L4: =Poule!Y12 -> Punten
A5: =Poule!D13 -> 09:00:00 | B5: =Poule!E13 -> 00:00:00 | C5: =Poule!G13 -> PA TEAM 1 | D5: =Poule!H13 -> 0 | E5: =Poule!M13 -> -- | F5: =Poule!N13 -> PA TEAM 2 | G5: =Poule!O13 -> 0 | H5: =Poule!U13 -> 3 | I5: =Poule!V13 -> -- | J5: =Poule!W13 -> 2 | L5: =Poule!Y13 -> 2 | N5: =Poule!AA13 -> 0
A6: =Poule!D14 -> 09:20:00 | B6: =Poule!E14 -> 00:00:00 | C6: =Poule!G14 -> PA TEAM 3 | D6: =Poule!H14 -> 0 | E6: =Poule!M14 -> -- | F6: =Poule!N14 -> PA TEAM 4 | G6: =Poule!O14 -> 0 | H6: =Poule!U14 -> 5 | I6: =Poule!V14 -> -- | J6: =Poule!W14 -> 0 | L6: =Poule!Y14 -> 2 | N6: =Poule!AA14 -> 0
A7: =Poule!D15 -> 09:40:00 | B7: =Poule!E15 -> 00:00:00 | C7: =Poule!G15 -> PA TEAM 5 | D7: =Poule!H15 -> 0 | E7: =Poule!M15 -> -- | F7: =Poule!N15 -> PA TEAM 1 | G7: =Poule!O15 -> 0 | H7: =Poule!U15 -> 5 | I7: =Poule!V15 -> -- | J7: =Poule!W15 -> 5 | L7: =Poule!Y15 -> 1 | N7: =Poule!AA15 -> 1
A8: =Poule!D16 -> 10:00:00 | B8: =Poule!E16 -> 00:00:00 | C8: =Poule!G16 -> PA TEAM 2 | D8: =Poule!H16 -> 0 | E8: =Poule!M16 -> -- | F8: =Poule!N16 -> PA TEAM 3 | G8: =Poule!O16 -> 0 | H8: =Poule!U16 -> 6 | I8: =Poule!V16 -> -- | J8: =Poule!W16 -> 3 | L8: =Poule!Y16 -> 2 | N8: =Poule!AA16 -> 0
A9: =Poule!D17 -> 10:20:00 | B9: =Poule!E17 -> 00:00:00 | C9: =Poule!G17 -> PA TEAM 5 | D9: =Poule!H17 -> 0 | E9: =Poule!M17 -> -- | F9: =Poule!N17 -> PA TEAM 4 | G9: =Poule!O17 -> 0 | H9: =Poule!U17 -> 2 | I9: =Poule!V17 -> -- | J9: =Poule!W17 -> 8 | L9: =Poule!Y17 -> 0 | N9: =Poule!AA17 -> 2
A10: =Poule!D18 -> 10:40:00 | B10: =Poule!E18 -> 00:00:00 | C10: =Poule!G18 -> PA TEAM 1 | D10: =Poule!H18 -> 0 | E10: =Poule!M18 -> -- | F10: =Poule!N18 -> PA TEAM 3 | G10: =Poule!O18 -> 0 | H10: =Poule!U18 -> 3 | I10: =Poule!V18 -> -- | J10: =Poule!W18 -> 5 | L10: =Poule!Y18 -> 0 | N10: =Poule!AA18 -> 2
A11: 11:00:00 | B11: =Poule!E16 -> 00:00:00 | C11: =Poule!G19 -> PA TEAM 2 | D11: =Poule!H19 -> 0 | E11: =Poule!M19 -> -- | F11: =Poule!N19 -> PA TEAM 5 | G11: =Poule!O19 -> 0 | H11: =Poule!U19 -> 1 | I11: =Poule!V19 -> -- | J11: =Poule!W19 -> 2 | L11: =Poule!Y19 -> 0 | N11: =Poule!AA19 -> 2
A12: 11:20:00 | B12: =Poule!E17 -> 00:00:00 | C12: =Poule!G20 -> PA TEAM 4 | D12: =Poule!H20 -> 0 | E12: =Poule!M20 -> -- | F12: =Poule!N20 -> PA TEAM 1 | G12: =Poule!O20 -> 0 | H12: =Poule!U20 -> 0 | I12: =Poule!V20 -> -- | J12: =Poule!W20 -> 0 | L12: =Poule!Y20 -> 1 | N12: =Poule!AA20 -> 1
A13: 11:40:00 | B13: =Poule!E17 -> 00:00:00 | C13: =Poule!G21 -> PA TEAM 3 | D13: =Poule!H21 -> 0 | E13: =Poule!M21 -> -- | F13: =Poule!N21 -> PA TEAM 5 | G13: =Poule!O21 -> 0 | H13: =Poule!U21 -> 3 | I13: =Poule!V21 -> -- | J13: =Poule!W21 -> 2 | L13: =Poule!Y21 -> 2 | N13: =Poule!AA21 -> 0
A14: 12:00:00 | B14: =Poule!E18 -> 00:00:00 | C14: =Poule!G18 -> PA TEAM 1 | D14: =Poule!H18 -> 0 | E14: =Poule!M18 -> -- | F14: =Poule!N18 -> PA TEAM 3 | G14: =Poule!O18 -> 0 | H14: =Poule!U18 -> 3 | I14: =Poule!V18 -> -- | J14: =Poule!W18 -> 5 | L14: =Poule!Y18 -> 0 | N14: =Poule!AA18 -> 2
A17: =Poule!A3 -> Stand | B17: =Poule!B5 -> Groep 1 | H17: =Poule!H5 -> V | I17: =Poule!I5 -> T | J17: =Poule!J5 -> P | K17: =Poule!K3 -> Gewonnen | L17: =Poule!L3 -> Gelijk | M17: =Poule!M3 -> Verloren | N17: =Poule!N3 -> Saldo
A18: =Poule!A4 -> 0 | K18: =Poule!K4 -> 0 | L18: =Poule!L4 -> 0 | M18: =Poule!M4 -> 0 | N18: =Poule!N4 -> 0
A19: =Poule!A5 -> 0 | K19: =Poule!K5 -> 0 | L19: =Poule!L5 -> 0 | M19: =Poule!M5 -> 0 | N19: =Poule!N5 -> 0
A20: =Poule!A6 -> 3 | B20: =Poule!B6 -> PA TEAM 1 | C20: =Poule!C6 -> 0 | D20: =Poule!D6 -> 0 | E20: =Poule!E6 -> 0 | F20: =Poule!F6 -> 0 | G20: =Poule!G6 -> 0 | H20: =Poule!H6 -> 11 | I20: =Poule!I6 -> 12 | J20: =Poule!J6 -> 3.99911 | K20: =Poule!K6 -> 1 | L20: =Poule!L6 -> 2 | M20: =Poule!M6 -> 1 | N20: =Poule!N6 -> -1
A21: =Poule!A7 -> 5 | B21: =Poule!B7 -> PA TEAM 2 | C21: =Poule!C7 -> 0 | D21: =Poule!D7 -> 0 | E21: =Poule!E7 -> 0 | F21: =Poule!F7 -> 0 | G21: =Poule!G7 -> 0 | H21: =Poule!H7 -> 10 | I21: =Poule!I7 -> 10 | J21: =Poule!J7 -> 2.0001 | K21: =Poule!K7 -> 1 | L21: =Poule!L7 -> 0 | M21: =Poule!M7 -> 3 | N21: =Poule!N7 -> 0
A22: =Poule!A8 -> 1 | B22: =Poule!B8 -> PA TEAM 3 | C22: =Poule!C8 -> 0 | D22: =Poule!D8 -> 0 | E22: =Poule!E8 -> 0 | F22: =Poule!F8 -> 0 | G22: =Poule!G8 -> 0 | H22: =Poule!H8 -> 16 | I22: =Poule!I8 -> 11 | J22: =Poule!J8 -> 6.00516 | K22: =Poule!K8 -> 3 | L22: =Poule!L8 -> 0 | M22: =Poule!M8 -> 1 | N22: =Poule!N8 -> 5
A23: =Poule!A9 -> 2 | B23: =Poule!B9 -> PA TEAM 4 | C23: =Poule!C9 -> 0 | D23: =Poule!D9 -> 0 | E23: =Poule!E9 -> 0 | F23: =Poule!F9 -> 0 | G23: =Poule!G9 -> 0 | H23: =Poule!H9 -> 10 | I23: =Poule!I9 -> 8 | J23: =Poule!J9 -> 5.0021 | K23: =Poule!K9 -> 2 | L23: =Poule!L9 -> 1 | M23: =Poule!M9 -> 1 | N23: =Poule!N9 -> 2
A24: =Poule!A10 -> 4 | B24: =Poule!B10 -> PA TEAM 5 | C24: =Poule!C10 -> 0 | D24: =Poule!D10 -> 0 | E24: =Poule!E10 -> 0 | F24: =Poule!F10 -> 0 | G24: =Poule!G10 -> 0 | H24: =Poule!H10 -> 11 | I24: =Poule!I10 -> 17 | J24: =Poule!J10 -> 2.99411 | K24: =Poule!K10 -> 1 | L24: =Poule!L10 -> 1 | M24: =Poule!M10 -> 2 | N24: =Poule!N10 -> -6

Sheet GROEP-2
A1: Toernooi 2 poules 5 teams | M1: Scores By: OnlineExcelCursus.NL
A4: =Poule!AC12 -> Tijd | C4: =Poule!AF12 -> VELD 2 | F4: =Poule!AT12 -> Uitslag | J4: =Poule!AX12 -> Punten
A5: =Poule!AC13 -> 09:00:00 | B5: =Poule!AD13 -> 00:00:00 | C5: =Poule!AF13 -> PB TEAM 1 | D5: =Poule!AL13 -> -- | E5: =Poule!AM13 -> PB TEAM 2 | F5: =Poule!AT13 -> 1 | G5: =Poule!AU13 -> -- | H5: =Poule!AV13 -> 8 | J5: =Poule!AX13 -> 0 | L5: =Poule!AZ13 -> 2
A6: =Poule!AC14 -> 09:20:00 | B6: =Poule!AD14 -> 00:00:00 | C6: =Poule!AF14 -> PB TEAM 3 | D6: =Poule!AL14 -> -- | E6: =Poule!AM14 -> PB TEAM 4 | F6: =Poule!AT14 -> 2 | G6: =Poule!AU14 -> -- | H6: =Poule!AV14 -> 6 | J6: =Poule!AX14 -> 0 | L6: =Poule!AZ14 -> 2
A7: =Poule!AC15 -> 09:40:00 | B7: =Poule!AD15 -> 00:00:00 | C7: =Poule!AF15 -> PB TEAM 5 | D7: =Poule!AL15 -> -- | E7: =Poule!AM15 -> PB TEAM 1 | F7: =Poule!AT15 -> 3 | G7: =Poule!AU15 -> -- | H7: =Poule!AV15 -> 8 | J7: =Poule!AX15 -> 0 | L7: =Poule!AZ15 -> 2
A8: =Poule!AC16 -> 10:00:00 | B8: =Poule!AD16 -> 00:00:00 | C8: =Poule!AF16 -> PB TEAM 2 | D8: =Poule!AL16 -> -- | E8: =Poule!AM16 -> PB TEAM 3 | F8: =Poule!AT16 -> 4 | G8: =Poule!AU16 -> -- | H8: =Poule!AV16 -> 4 | J8: =Poule!AX16 -> 1 | L8: =Poule!AZ16 -> 1
A9: =Poule!AC17 -> 10:20:00 | B9: =Poule!AD17 -> 00:00:00 | C9: =Poule!AF17 -> PB TEAM 5 | D9: =Poule!AL17 -> -- | E9: =Poule!AM17 -> PB TEAM 4 | F9: =Poule!AT17 -> 2 | G9: =Poule!AU17 -> -- | H9: =Poule!AV17 -> 3 | J9: =Poule!AX17 -> 0 | L9: =Poule!AZ17 -> 2
A10: =Poule!D18 -> 10:40:00 | B10: =Poule!E18 -> 00:00:00 | C10: =Poule!AF18 -> PB TEAM 1 | D10: =Poule!AL18 -> -- | E10: =Poule!AM18 -> PB TEAM 3 | F10: =Poule!AT18 -> 1 | G10: =Poule!AU18 -> -- | H10: =Poule!AV18 -> 6 | J10: =Poule!AX18 -> 0 | L10: =Poule!AZ18 -> 2
A11: 11:00:00 | B11: =Poule!E16 -> 00:00:00 | C11: =Poule!AF19 -> PB TEAM 2 | D11: =Poule!AL19 -> -- | E11: =Poule!AM19 -> PB TEAM 5 | F11: =Poule!AT19 -> 1 | G11: =Poule!AU19 -> -- | H11: =Poule!AV19 -> 2 | J11: =Poule!AX19 -> 0 | L11: =Poule!AZ19 -> 2
A12: 11:20:00 | B12: =Poule!E17 -> 00:00:00 | C12: =Poule!AF20 -> PB TEAM 4 | D12: =Poule!AL20 -> -- | E12: =Poule!AM20 -> PB TEAM 1 | F12: =Poule!AT20 -> 3 | G12: =Poule!AU20 -> -- | H12: =Poule!AV20 -> 5 | J12: =Poule!AX20 -> 0 | L12: =Poule!AZ20 -> 2
A13: 11:40:00 | B13: =Poule!E17 -> 00:00:00 | C13: =Poule!AF21 -> PB TEAM 3 | D13: =Poule!AL21 -> -- | E13: =Poule!AM21 -> PB TEAM 5 | F13: =Poule!AT21 -> 2 | G13: =Poule!AU21 -> -- | H13: =Poule!AV21 -> 2 | J13: =Poule!AX21 -> 1 | L13: =Poule!AZ21 -> 1
A14: 12:00:00 | B14: =Poule!E18 -> 00:00:00 | C14: =Poule!AF18 -> PB TEAM 1 | D14: =Poule!AL18 -> -- | E14: =Poule!AM18 -> PB TEAM 3 | F14: =Poule!AT18 -> 1 | G14: =Poule!AU18 -> -- | H14: =Poule!AV18 -> 6 | J14: =Poule!AX18 -> 0 | L14: =Poule!AZ18 -> 2
A18: =Poule!O3 -> Stand | B18: =Poule!P5 -> Groep 2 | F18: =Poule!W5 -> V | G18: =Poule!X5 -> T | H18: =Poule!Y5 -> P | I18: =Poule!Z3 -> Gewonnen | J18: =Poule!AA3 -> Gelijk | K18: =Poule!AB3 -> Verloren | L18: =Poule!AC3 -> Saldo
A19: =Poule!O4 -> 0 | I19: =Poule!Z4 -> 0 | J19: =Poule!AA4 -> 0 | K19: =Poule!AB4 -> 0 | L19: =Poule!AC4 -> 0
A20: =Poule!O5 -> 0 | I20: =Poule!Z5 -> 0 | J20: =Poule!AA5 -> 0 | K20: =Poule!AB5 -> 0 | L20: =Poule!AC5 -> 0
A21: =Poule!O6 -> 4 | B21: =Poule!P6 -> PB TEAM 1 | F21: =Poule!W6 -> 15 | G21: =Poule!X6 -> 20 | H21: =Poule!Y6 -> 3.99515 | I21: =Poule!Z6 -> 2 | J21: =Poule!AA6 -> 0 | K21: =Poule!AB6 -> 2 | L21: =Poule!AC6 -> -5
A22: =Poule!O7 -> 1 | B22: =Poule!P7 -> PB TEAM 2 | F22: =Poule!W7 -> 16 | G22: =Poule!X7 -> 7 | H22: =Poule!Y7 -> 5.00916 | I22: =Poule!Z7 -> 2 | J22: =Poule!AA7 -> 1 | K22: =Poule!AB7 -> 1 | L22: =Poule!AC7 -> 9
A23: =Poule!O8 -> 2 | B23: =Poule!P8 -> PB TEAM 3 | F23: =Poule!W8 -> 14 | G23: =Poule!X8 -> 13 | H23: =Poule!Y8 -> 4.00114 | I23: =Poule!Z8 -> 1 | J23: =Poule!AA8 -> 2 | K23: =Poule!AB8 -> 1 | L23: =Poule!AC8 -> 1
A24: =Poule!O9 -> 3 | B24: =Poule!P9 -> PB TEAM 4 | F24: =Poule!W9 -> 12 | G24: =Poule!X9 -> 12 | H24: =Poule!Y9 -> 4.00012 | I24: =Poule!Z9 -> 2 | J24: =Poule!AA9 -> 0 | K24: =Poule!AB9 -> 2 | L24: =Poule!AC9 -> 0
A25: =Poule!O10 -> 5 | B25: =Poule!P10 -> PB TEAM 5 | F25: =Poule!W10 -> 9 | G25: =Poule!X10 -> 14 | H25: =Poule!Y10 -> 2.99509 | I25: =Poule!Z10 -> 1 | J25: =Poule!AA10 -> 1 | K25: =Poule!AB10 -> 2 | L25: =Poule!AC10 -> -5
